fUST/lending_fUST_20251207
["ID","MTS","AMOUNT","RATE_DAILY","PERIOD"]
[396572252,1765055456969,-500.0,8.767e-05,2]
[396572254,1765055456978,-500.0,8.767e-05,2]
[396572256,1765055456988,-1336.74,8.767e-05,2]
[396572258,1765055456999,-500.0,8.767e-05,2]
[396572260,1765055457008,-500.0,8.767e-05,2]
[396572262,1765055457018,-500.0,8.767e-05,2]
[396572264,1765055457027,-592.85,8.767e-05,2]
[396572265,1765055457036,-500.0,8.767e-05,2]
[396572267,1765055457047,-500.0,8.767e-05,2]
[396572269,1765055457057,-2800.96,8.767e-05,2]
[396572271,1765055457067,-500.0,8.767e-05,2]
[396572273,1765055457077,-500.0,8.767e-05,2]
[396572275,1765055457087,-2465.94,8.767e-05,2]
[396572277,1765055457097,-500.0,8.767e-05,2]
[396572279,1765055457106,-500.0,8.767e-05,2]
[396572281,1765055457115,-500.0,8.767e-05,2]
[396572283,1765055457125,-2338.65,8.767e-05,2]
[396572285,1765055457135,-1180.5,8.767e-05,2]
[396572287,1765055457144,-500.0,8.767e-05,2]
[396572289,1765055457154,-500.0,8.767e-05,2]
[396572291,1765055457165,-500.0,8.767e-05,2]
[396572293,1765055457175,-470.71246637,8.767e-05,2]
[396572295,1765055457185,-974.77,8.767e-05,2]
[396572297,1765055457194,-500.0,8.767e-05,2]
[396572299,1765055457203,-500.0,8.767e-05,2]
[396572301,1765055457213,-847.22,8.767e-05,2]
[396572303,1765055457223,-500.0,8.767e-05,2]
[396572304,1765055457233,-882.71,8.767e-05,2]
[396572306,1765055457244,-500.0,8.767e-05,2]
[396572308,1765055457254,-1868.06,8.767e-05,2]
[396572310,1765055457264,-500.0,8.767e-05,2]
[396572312,1765055457278,-514.87,8.767e-05,2]
[396572314,1765055457287,-500.0,8.767e-05,2]
[396572316,1765055457297,-500.0,8.767e-05,2]
[396572318,1765055457307,-500.0,8.767e-05,2]
[396572320,1765055457320,-500.0,8.767e-05,2]
[396572322,1765055457330,-500.0,8.767e-05,2]
[396572344,1765055457545,-710.13,8.767e-05,2]
[396572346,1765055457556,-500.0,8.767e-05,2]
[396572348,1765055457565,-500.0,8.767e-05,2]
[396572350,1765055457577,-500.0,8.767e-05,2]
[396572352,1765055457586,-500.0,8.767e-05,2]
[396572354,1765055457595,-500.0,8.767e-05,2]
[396572356,1765055457605,-500.0,8.767e-05,2]
[396572358,1765055457615,-500.0,8.767e-05,2]
[396572360,1765055457624,-500.0,8.767e-05,2]
[396572362,1765055457634,-500.0,8.767e-05,2]
[396572364,1765055457643,-500.0,8.767e-05,2]
[396572366,1765055457653,-500.0,8.767e-05,2]
[396572368,1765055457662,-608.08,8.767e-05,2]
[396572370,1765055457671,-500.0,8.767e-05,2]
[396572372,1765055457681,-500.0,8.767e-05,2]
[396572373,1765055457690,-466.28091,8.767e-05,2]
[396572375,1765055457699,-500.0,8.767e-05,2]
[396572377,1765055457709,-500.0,8.767e-05,2]
[396572379,1765055457718,-500.0,8.767e-05,2]
[396572381,1765055457728,-500.0,8.767e-05,2]
[396572383,1765055457737,-500.0,8.767e-05,2]
[396572385,1765055457747,-500.0,8.767e-05,2]
[396572387,1765055457758,-500.0,8.767e-05,2]
[396572389,1765055457768,-500.0,8.767e-05,2]
[396572391,1765055457778,-531.81,8.767e-05,2]
[396572393,1765055457788,-500.0,8.767e-05,2]
[396572395,1765055457798,-716.87,8.767e-05,2]
[396572397,1765055457807,-500.0,8.767e-05,2]
[396572399,1765055457817,-500.0,8.767e-05,2]
[396572401,1765055457826,-663.76,8.767e-05,2]
[396572403,1765055457836,-500.0,8.767e-05,2]
[396572405,1765055457845,-500.0,8.767e-05,2]
[396572407,1765055457855,-1219.81,8.767e-05,2]
[396572409,1765055457864,-1234.87,8.767e-05,2]
[396572411,1765055457874,-906.09,8.767e-05,2]
[396572412,1765055457884,-500.0,8.767e-05,2]
[396572414,1765055457893,-986.05,8.767e-05,2]
[396572416,1765055457903,-674.59,8.767e-05,2]
[396572418,1765055457913,-500.0,8.767e-05,2]
[396572420,1765055457923,-500.0,8.767e-05,2]
[396572422,1765055457933,-731.62,8.767e-05,2]
[396572424,1765055457942,-1237.32,8.767e-05,2]
[396572426,1765055457951,-1239.77,8.767e-05,2]
[396572428,1765055457962,-917.68,8.767e-05,2]
[396572430,1765055457971,-1117.88,8.767e-05,2]
[396572432,1765055457982,-236.39880593,8.767e-05,2]
[396572434,1765055457991,-500.0,8.767e-05,2]
[396572436,1765055458001,-500.0,8.767e-05,2]
[396572438,1765055458010,-500.0,8.767e-05,2]
[396572440,1765055458020,-500.0,8.767e-05,2]
[396572442,1765055458030,-553.73458178,8.767e-05,2]
[396572444,1765055458040,-500.0,8.767e-05,2]
[396572446,1765055458049,-603.57,8.767e-05,2]
[396572448,1765055458058,-818.06,8.767e-05,2]
[396572449,1765055458069,-500.0,8.767e-05,2]
[396572451,1765055458078,-500.0,8.767e-05,2]
[396572453,1765055458088,-5292.83,8.767e-05,2]
[396572455,1765055458098,-500.0,8.767e-05,2]
[396572457,1765055458107,-500.0,8.767e-05,2]
[396572459,1765055458116,-1365.26,8.767e-05,2]
[396572461,1765055458126,-500.0,8.767e-05,2]
[396572463,1765055458136,-500.0,8.767e-05,2]
[396572465,1765055458146,-500.0,8.767e-05,2]
[396572467,1765055458156,-500.0,8.767e-05,2]
[396572469,1765055458166,-1714.1,8.767e-05,2]
[396572471,1765055458175,-500.0,8.767e-05,2]
[396572473,1765055458184,-500.0,8.767e-05,2]
[396572475,1765055458193,-500.0,8.767e-05,2]
[396572477,1765055458202,-500.0,8.767e-05,2]
[396572479,1765055458211,-500.0,8.767e-05,2]
[396572481,1765055458221,-500.0,8.767e-05,2]
[396572483,1765055458231,-500.0,8.767e-05,2]
[396572484,1765055458241,-500.0,8.767e-05,2]
[396572486,1765055458250,-500.0,8.767e-05,2]
[396572488,1765055458259,-500.0,8.767e-05,2]
[396572490,1765055458272,-500.0,8.767e-05,2]
[396572492,1765055458284,-1389.93,8.767e-05,2]
[396572494,1765055458293,-500.0,8.767e-05,2]
[396572496,1765055458303,-500.0,8.767e-05,2]
[396572498,1765055458313,-500.0,8.767e-05,2]
[396572500,1765055458323,-856.7,8.767e-05,2]
[396572502,1765055458332,-1005.66,8.767e-05,2]
[396572504,1765055458342,-370.53547259,8.767e-05,2]
[396572506,1765055458356,-1864.45,8.767e-05,2]
[396572508,1765055458366,-500.0,8.767e-05,2]
[396572510,1765055458376,-500.0,8.767e-05,2]
[396572512,1765055458386,-500.0,8.767e-05,2]
[396572514,1765055458395,-10457.24,8.767e-05,2]
[396572516,1765055458404,-500.0,8.767e-05,2]
[396572518,1765055458413,-700.33,8.767e-05,2]
[396572519,1765055458422,-744.13,8.767e-05,2]
[396572521,1765055458431,-3298.89,8.767e-05,2]
[396572523,1765055458442,-500.0,8.767e-05,2]
[396572525,1765055458451,-500.0,8.767e-05,2]
[396572527,1765055458461,-6067.67,8.767e-05,2]
[396572529,1765055458471,-2716.35,8.767e-05,2]
[396572531,1765055458481,-668.05,8.767e-05,2]
[396572533,1765055458491,-500.0,8.767e-05,2]
[396572535,1765055458500,-500.0,8.767e-05,2]
[396572537,1765055458509,-500.0,8.767e-05,2]
[396572539,1765055458518,-500.0,8.767e-05,2]
[396572541,1765055458528,-500.0,8.767e-05,2]
[396572543,1765055458538,-838.73,8.767e-05,2]
[396572545,1765055458548,-2494.95,8.767e-05,2]
[396572547,1765055458557,-1024.15,8.767e-05,2]
[396572549,1765055458566,-500.0,8.767e-05,2]
[396572551,1765055458576,-500.0,8.767e-05,2]
[396572553,1765055458585,-1269.83,8.767e-05,2]
[396572555,1765055458594,-16529.87,8.767e-05,2]
[396572557,1765055458603,-1862.02,8.767e-05,2]
[396572559,1765055458612,-2328.26,8.767e-05,2]
[396572561,1765055458622,-500.0,8.767e-05,2]
[396572563,1765055458631,-918.0,8.767e-05,2]
[396572565,1765055458640,-737.17,8.767e-05,2]
[396572567,1765055458649,-500.0,8.767e-05,2]
[396572568,1765055458658,-779.54,8.767e-05,2]
[396572570,1765055458667,-411.92728267,8.767e-05,2]
[396572572,1765055458676,-1988.47,8.767e-05,2]
[396572573,1765055458685,-1129.49,8.767e-05,2]
[396572574,1765055458695,-500.0,8.767e-05,2]
[396572575,1765055458704,-500.0,8.767e-05,2]
[396572576,1765055458713,-500.0,8.767e-05,2]
[396572577,1765055458722,-500.0,8.767e-05,2]
[396572578,1765055458731,-5637.04,8.767e-05,2]
[396572579,1765055458741,-1467.71,8.767e-05,2]
[396572580,1765055458750,-500.0,8.767e-05,2]
[396572581,1765055458759,-1905.71,8.767e-05,2]
[396572582,1765055458769,-580.49,8.767e-05,2]
[396572583,1765055458778,-500.0,8.767e-05,2]
[396572584,1765055458788,-1643.1,8.767e-05,2]
[396572585,1765055458798,-500.0,8.767e-05,2]
[396572586,1765055458807,-500.0,8.767e-05,2]
[396572587,1765055458816,-1642.05,8.767e-05,2]
[396572588,1765055458826,-4868.3,8.767e-05,2]
[396572589,1765055458836,-554.1,8.767e-05,2]
[396572590,1765055458845,-529.07,8.767e-05,2]
[396572591,1765055458855,-535.26,8.767e-05,2]
[396572592,1765055458864,-2324.98,8.767e-05,2]
[396572593,1765055458873,-2845.62,8.767e-05,2]
[396572594,1765055458883,-1820.35,8.767e-05,2]
[396572595,1765055458892,-500.0,8.767e-05,2]
[396572596,1765055458902,-930.65,8.767e-05,2]
[396572597,1765055458911,-500.0,8.767e-05,2]
[396572598,1765055458921,-1986.35,8.767e-05,2]
[396572599,1765055458930,-500.0,8.767e-05,2]
[396572600,1765055458939,-973.74,8.767e-05,2]
[396572601,1765055458949,-500.0,8.767e-05,2]
[396572602,1765055458959,-500.0,8.767e-05,2]
[396572603,1765055458968,-500.0,8.767e-05,2]
[396572605,1765055458978,-500.0,8.767e-05,2]
[396572607,1765055458987,-13792.0,8.767e-05,2]
[396572609,1765055458997,-572.55,8.767e-05,2]
[396572611,1765055459007,-944.7,8.767e-05,2]
[396572613,1765055459016,-913.76,8.767e-05,2]
[396572615,1765055459026,-500.0,8.767e-05,2]
[396572617,1765055459036,-500.0,8.767e-05,2]
[396572618,1765055459046,-4391.67,8.767e-05,2]
[396572621,1765055459057,-500.0,8.767e-05,2]
[396572622,1765055459067,-500.0,8.767e-05,2]
[396572625,1765055459081,-8223.72,8.767e-05,2]
[396572626,1765055459091,-1237.25,8.767e-05,2]
[396572629,1765055459102,-568.67,8.767e-05,2]
[396572631,1765055459111,-739.9,8.767e-05,2]
[396572633,1765055459121,-500.0,8.767e-05,2]
[396572635,1765055459131,-1297.41,8.767e-05,2]
[396572636,1765055459141,-588.13,8.767e-05,2]
[396572638,1765055459150,-500.0,8.767e-05,2]
[396572640,1765055459161,-3929.13,8.767e-05,2]
[396572642,1765055459171,-500.0,8.767e-05,2]
[396572644,1765055459182,-2132.75,8.767e-05,2]
[396572646,1765055459191,-500.0,8.767e-05,2]
[396572648,1765055459201,-500.0,8.767e-05,2]
[396572651,1765055459211,-500.0,8.767e-05,2]
[396572652,1765055459221,-1426.03,8.767e-05,2]
[396572655,1765055459231,-500.0,8.767e-05,2]
[396572656,1765055459240,-500.0,8.767e-05,2]
[396572659,1765055459250,-500.0,8.767e-05,2]
[396572660,1765055459259,-1307.88,8.767e-05,2]
[396572662,1765055459269,-818.51,8.767e-05,2]
[396572664,1765055459282,-500.0,8.767e-05,2]
[396572666,1765055459291,-500.0,8.767e-05,2]
[396572669,1765055459301,-916.53,8.767e-05,2]
[396572671,1765055459311,-500.0,8.767e-05,2]
[396572672,1765055459323,-500.0,8.767e-05,2]
[396572674,1765055459333,-781.49,8.767e-05,2]
[396572677,1765055459343,-1811.46,8.767e-05,2]
[396572678,1765055459354,-9712.73,8.767e-05,2]
[396572680,1765055459364,-500.0,8.767e-05,2]
[396572683,1765055459374,-500.0,8.767e-05,2]
[396572684,1765055459384,-500.0,8.767e-05,2]
[396572687,1765055459393,-3251.18,8.767e-05,2]
[396572688,1765055459403,-500.0,8.767e-05,2]
[396572691,1765055459413,-499.97709808,8.767e-05,2]
[396572692,1765055459422,-773.21,8.767e-05,2]
[396572695,1765055459432,-500.0,8.767e-05,2]
[396572696,1765055459442,-1381.51,8.767e-05,2]
[396572699,1765055459451,-500.0,8.767e-05,2]
[396572700,1765055459461,-576.69,8.767e-05,2]
[396572703,1765055459471,-500.0,8.767e-05,2]
[396572705,1765055459480,-3206.49,8.767e-05,2]
[396572707,1765055459490,-882.67,8.767e-05,2]
[396572709,1765055459499,-1425.62,8.767e-05,2]
[396572711,1765055459508,-612.61,8.767e-05,2]
[396572713,1765055459517,-500.0,8.767e-05,2]
[396572715,1765055459527,-500.0,8.767e-05,2]
[396572717,1765055459537,-516.26,8.767e-05,2]
[396572719,1765055459546,-500.0,8.767e-05,2]
[396572721,1765055459555,-1999.26,8.767e-05,2]
[396572723,1765055459564,-2449.06,8.767e-05,2]
[396572724,1765055459575,-500.0,8.767e-05,2]
[396572726,1765055459584,-500.0,8.767e-05,2]
[396572729,1765055459594,-577.58,8.767e-05,2]
[396572730,1765055459603,-840.05,8.767e-05,2]
[396572732,1765055459614,-500.0,8.767e-05,2]
[396572735,1765055459625,-500.0,8.767e-05,2]
[396572737,1765055459634,-1548.31,8.767e-05,2]
[396572738,1765055459643,-817.77,8.767e-05,2]
[396572741,1765055459653,-592.6,8.767e-05,2]
[396572742,1765055459664,-1975.94,8.767e-05,2]
[396572744,1765055459676,-500.0,8.767e-05,2]
[396572747,1765055459687,-1955.06,8.767e-05,2]
[396572749,1765055459696,-500.0,8.767e-05,2]
[396572751,1765055459706,-495.72343931,8.767e-05,2]
[396572752,1765055459716,-500.0,8.767e-05,2]
[396572755,1765055459727,-1723.48,8.767e-05,2]
[396572756,1765055459738,-500.0,8.767e-05,2]
[396572758,1765055459749,-500.0,8.767e-05,2]
[396572761,1765055459759,-500.0,8.767e-05,2]
[396572763,1765055459769,-500.0,8.767e-05,2]
[396572764,1765055459779,-500.0,8.767e-05,2]
[396572767,1765055459790,-1499.26,8.767e-05,2]
[396572769,1765055459799,-1092.83,8.767e-05,2]
[396572771,1765055459809,-500.0,8.767e-05,2]
[396572772,1765055459818,-4777.56,8.767e-05,2]
[396572774,1765055459828,-500.0,8.767e-05,2]
[396572777,1765055459838,-500.0,8.767e-05,2]
[396572779,1765055459847,-500.0,8.767e-05,2]
[396572789,1765055459929,-1555.33,8.767e-05,2]
[396572791,1765055459939,-5441.22,8.767e-05,2]
[396572793,1765055459948,-183.92254281,8.767e-05,2]
[396572795,1765055459958,-500.0,8.767e-05,2]
[396572797,1765055459967,-5109.81,8.767e-05,2]
[396572798,1765055459976,-7856.3,8.767e-05,2]
[396572800,1765055459985,-500.0,8.767e-05,2]
[396572802,1765055459995,-1643.96,8.767e-05,2]
[396572804,1765055460004,-500.0,8.767e-05,2]
[396572806,1765055460012,-500.0,8.767e-05,2]
[396572808,1765055460022,-564.78491084,8.767e-05,2]
[396572810,1765055460031,-636.86,8.767e-05,2]
[396572812,1765055460041,-1411.91,8.767e-05,2]
[396572814,1765055460050,-3514.61,8.767e-05,2]
[396572816,1765055460060,-500.0,8.767e-05,2]
[396572818,1765055460072,-500.0,8.767e-05,2]
[396572820,1765055460081,-500.0,8.767e-05,2]
[396572822,1765055460091,-1188.22,8.767e-05,2]
[396572824,1765055460100,-793.19,8.767e-05,2]
[396572826,1765055460109,-1009.34,8.767e-05,2]
[396572828,1765055460118,-500.0,8.767e-05,2]
[396572830,1765055460127,-500.0,8.767e-05,2]
[396572832,1765055460136,-3649.29,8.767e-05,2]
[396572834,1765055460147,-915.41,8.767e-05,2]
[396572836,1765055460157,-500.0,8.767e-05,2]
[396572838,1765055460166,-1140.73,8.767e-05,2]
[396572840,1765055460176,-519.16,8.767e-05,2]
[396572842,1765055460185,-631.62,8.767e-05,2]
[396572844,1765055460195,-3657.33,8.767e-05,2]
[396572846,1765055460205,-500.0,8.767e-05,2]
[396572848,1765055460215,-500.0,8.767e-05,2]
[396572850,1765055460225,-500.0,8.767e-05,2]
[396572852,1765055460234,-500.0,8.767e-05,2]
[396572854,1765055460243,-4312.87,8.767e-05,2]
[396572856,1765055460253,-500.0,8.767e-05,2]
[396572858,1765055460262,-500.0,8.767e-05,2]
[396572860,1765055460276,-1926.16,8.767e-05,2]
[396572862,1765055460285,-500.0,8.767e-05,2]
[396572864,1765055460294,-702.46,8.767e-05,2]
[396572866,1765055460304,-500.0,8.767e-05,2]
[396572868,1765055460315,-569.98,8.767e-05,2]
[396572870,1765055460326,-26957.27,8.767e-05,2]
[396572872,1765055460335,-500.0,8.767e-05,2]
[396572874,1765055460345,-3360.73,8.767e-05,2]
[396572876,1765055460354,-500.0,8.767e-05,2]
[396572878,1765055460365,-157.20820288,8.767e-05,2]
[396572880,1765055460374,-9009.87,8.767e-05,2]
[396572882,1765055460384,-500.0,8.767e-05,2]
[396572884,1765055460393,-500.0,8.767e-05,2]
[396572886,1765055460402,-1298.1,8.767e-05,2]
[396572888,1765055460411,-500.0,8.767e-05,2]
[396572889,1765055460422,-500.0,8.767e-05,2]
[396572892,1765055460432,-1499.5,8.767e-05,2]
[396572893,1765055460441,-500.0,8.767e-05,2]
[396572896,1765055460452,-1522.79,8.767e-05,2]
[396572897,1765055460463,-6650.71,8.767e-05,2]
[396572899,1765055460472,-500.0,8.767e-05,2]
[396572902,1765055460483,-500.0,8.767e-05,2]
[396572904,1765055460493,-1457.1,8.767e-05,2]
[396572906,1765055460505,-500.0,8.767e-05,2]
[396572907,1765055460514,-500.0,8.767e-05,2]
[396572909,1765055460523,-740.17,8.767e-05,2]
[396572912,1765055460532,-2155.13,8.767e-05,2]
[396572914,1765055460542,-1874.71,8.767e-05,2]
[396572915,1765055460551,-1648.26,8.767e-05,2]
[396572917,1765055460560,-500.0,8.767e-05,2]
[396572919,1765055460570,-500.0,8.767e-05,2]
[396572921,1765055460580,-568.26,8.767e-05,2]
[396572923,1765055460589,-500.0,8.767e-05,2]
[396572925,1765055460598,-690.26,8.767e-05,2]
[396572927,1765055460609,-636.18,8.767e-05,2]
[396572929,1765055460618,-500.0,8.767e-05,2]
[396572931,1765055460628,-300.19872677,8.767e-05,2]
[396572933,1765055460638,-508.41,8.767e-05,2]
[396572935,1765055460647,-500.0,8.767e-05,2]
[396572937,1765055460656,-500.0,8.767e-05,2]
[396572939,1765055460667,-500.0,8.767e-05,2]
[396572941,1765055460676,-500.0,8.767e-05,2]
[396572943,1765055460686,-500.0,8.767e-05,2]
[396572945,1765055460695,-500.0,8.767e-05,2]
[396572947,1765055460705,-2484.37,8.767e-05,2]
[396572949,1765055460714,-6053.56,8.767e-05,2]
[396572951,1765055460723,-1042.84,8.767e-05,2]
[396572953,1765055460732,-657.07,8.767e-05,2]
[396572955,1765055460741,-2236.76,8.767e-05,2]
[396572957,1765055460753,-500.0,8.767e-05,2]
[396572960,1765055460762,-500.0,8.767e-05,2]
[396572961,1765055460772,-500.0,8.767e-05,2]
[396572964,1765055460794,-1359.69,8.767e-05,2]
[396572966,1765055460808,-500.0,8.767e-05,2]
[396572968,1765055460817,-500.0,8.767e-05,2]
[396572970,1765055460827,-1204.67,8.767e-05,2]
[396572971,1765055460836,-737.59,8.767e-05,2]
[396572973,1765055460845,-500.0,8.767e-05,2]
[396572975,1765055460855,-5032.43,8.767e-05,2]
[396572977,1765055460864,-512.76,8.767e-05,2]
[396572979,1765055460875,-1553.31,8.767e-05,2]
[396572982,1765055460885,-883.58,8.767e-05,2]
[396572984,1765055460899,-1394.01,8.767e-05,2]
[396572986,1765055460916,-500.0,8.767e-05,2]
[396572988,1765055460925,-739.07868284,8.796e-05,2]
[396572989,1765055460933,-250.0,8.8e-05,2]
[396572991,1765055460943,-250.0,8.8e-05,2]
[396572993,1765055460951,-250.0,8.8e-05,2]
[396572996,1765055460961,-1535.45431964,8.802e-05,2]
[396572998,1765055460970,-500.0,8.803e-05,2]
[396572999,1765055460980,-535.0,8.803e-05,2]
[396573001,1765055460989,-1984.64881971,8.816e-05,2]
[396573003,1765055460999,-1662.9270364,8.825e-05,2]
[396573006,1765055461009,-502.4917934,8.831e-05,2]
[396573007,1765055461018,-2956.31473137,8.855e-05,2]
[396573009,1765055461027,-235.62200269,8.871e-05,2]
[396573011,1765055461039,-4619.24176777,8.885e-05,2]
[396573013,1765055461048,-2806.55,8.9e-05,2]
[396573016,1765055461058,-823.0,8.923e-05,2]
[396573017,1765055461067,-500.0,8.94e-05,2]
[396573019,1765055461077,-535.0,8.94e-05,2]
[396573021,1765055461086,-3494.0538279,8.987e-05,2]
[396573023,1765055461095,-158.0,9e-05,2]
[396573025,1765055461104,-158.0,9e-05,2]
[396573027,1765055461113,-250.0,9e-05,2]
[396573029,1765055461122,-250.0,9e-05,2]
[396573031,1765055461132,-250.0,9e-05,2]
[396573033,1765055461141,-250.0,9e-05,2]
[396573035,1765055461151,-250.0,9e-05,2]
[396573037,1765055461162,-193.5,9e-05,2]
[396573039,1765055461171,-500.0,9.041e-05,2]
[396573041,1765055461180,-500.0,9.041e-05,2]
[396573043,1765055461189,-500.0,9.041e-05,2]
[396573045,1765055461198,-898.73,9.041e-05,2]
[396573047,1765055461207,-500.0,9.041e-05,2]
[396573049,1765055461216,-500.0,9.041e-05,2]
[396573051,1765055461226,-500.0,9.041e-05,2]
[396573053,1765055461235,-500.0,9.041e-05,2]
[396573055,1765055461244,-500.0,9.041e-05,2]
[396573057,1765055461254,-500.0,9.041e-05,2]
[396573059,1765055461263,-500.0,9.041e-05,2]
[396573061,1765055461274,-500.0,9.041e-05,2]
[396573063,1765055461284,-500.0,9.041e-05,2]
[396573065,1765055461293,-663.47,9.041e-05,2]
[396573067,1765055461302,-713.32,9.041e-05,2]
[396573069,1765055461311,-500.0,9.041e-05,2]
[396573071,1765055461323,-500.0,9.041e-05,2]
[396573072,1765055461333,-500.0,9.041e-05,2]
[396573073,1765055461342,-500.0,9.041e-05,2]
[396573074,1765055461352,-500.0,9.041e-05,2]
[396573075,1765055461361,-500.0,9.041e-05,2]
[396573076,1765055461370,-500.0,9.041e-05,2]
[396573077,1765055461379,-563.66,9.041e-05,2]
[396573078,1765055461388,-500.0,9.041e-05,2]
[396573079,1765055461397,-500.0,9.041e-05,2]
[396573081,1765055461406,-500.0,9.041e-05,2]
[396573083,1765055461415,-500.0,9.041e-05,2]
[396573085,1765055461425,-267.10611635,9.041e-05,2]
[396573087,1765055461434,-525.07,9.041e-05,2]
[396573089,1765055461445,-537.49,9.041e-05,2]
[396573091,1765055461454,-624.36,9.041e-05,2]
[396573093,1765055461464,-500.0,9.041e-05,2]
[396573095,1765055461474,-500.0,9.041e-05,2]
[396573097,1765055461484,-622.45,9.041e-05,2]
[396573099,1765055461493,-500.0,9.041e-05,2]
[396573101,1765055461504,-500.0,9.041e-05,2]
[396573103,1765055461513,-3682.836384,9.041e-05,2]
[396573105,1765055461522,-500.0,9.041e-05,2]
[396573107,1765055461533,-1589.85,9.041e-05,2]
[396573109,1765055461542,-500.0,9.041e-05,2]
[396573111,1765055461551,-500.0,9.041e-05,2]
[396573113,1765055461561,-1134.58,9.041e-05,2]
[396573115,1765055461571,-1087.31,9.041e-05,2]
[396573117,1765055461581,-500.0,9.041e-05,2]
[396573119,1765055461590,-500.0,9.041e-05,2]
[396573121,1765055461600,-500.0,9.041e-05,2]
[396573123,1765055461609,-500.0,9.041e-05,2]
[396573125,1765055461618,-500.0,9.041e-05,2]
[396573127,1765055461628,-713.0,9.041e-05,2]
[396573129,1765055461637,-566.05,9.041e-05,2]
[396573131,1765055461647,-500.0,9.041e-05,2]
[396573133,1765055461657,-500.0,9.041e-05,2]
[396573135,1765055461666,-500.0,9.041e-05,2]
[396573137,1765055461675,-500.0,9.041e-05,2]
[396573139,1765055461685,-500.0,9.041e-05,2]
[396573141,1765055461696,-877.38,9.041e-05,2]
[396573143,1765055461706,-500.0,9.041e-05,2]
[396573145,1765055461715,-500.0,9.041e-05,2]
[396573147,1765055461725,-500.0,9.041e-05,2]
[396573149,1765055461734,-1132.83,9.041e-05,2]
[396573151,1765055461744,-500.0,9.041e-05,2]
[396573153,1765055461753,-500.0,9.041e-05,2]
[396573156,1765055461764,-500.0,9.041e-05,2]
[396573158,1765055461773,-500.0,9.041e-05,2]
[396573160,1765055461783,-500.0,9.041e-05,2]
[396573162,1765055461793,-500.0,9.041e-05,2]
[396573164,1765055461802,-500.0,9.041e-05,2]
[396573166,1765055461811,-500.0,9.041e-05,2]
[396573168,1765055461821,-388.82544725,9.041e-05,2]
[396573170,1765055461831,-681.31,9.041e-05,2]
[396573172,1765055461840,-500.0,9.041e-05,2]
[396573174,1765055461849,-500.0,9.041e-05,2]
[396573176,1765055461859,-500.0,9.041e-05,2]
[396573178,1765055461869,-500.0,9.041e-05,2]
[396573180,1765055461878,-551.66,9.041e-05,2]
[396573182,1765055461888,-539.12,9.041e-05,2]
[396573184,1765055461898,-534.25,9.041e-05,2]
[396573186,1765055461908,-500.0,9.041e-05,2]
[396573188,1765055461918,-500.0,9.041e-05,2]
[396573190,1765055461928,-500.0,9.041e-05,2]
[396573192,1765055461938,-582.41,9.041e-05,2]
[396573194,1765055461948,-674.04,9.041e-05,2]
[396573197,1765055461958,-500.0,9.041e-05,2]
[396573199,1765055461967,-500.0,9.041e-05,2]
[396573201,1765055461976,-500.0,9.041e-05,2]
[396573203,1765055461986,-500.0,9.041e-05,2]
[396573204,1765055461995,-500.0,9.041e-05,2]
[396573207,1765055462004,-500.0,9.041e-05,2]
[396573209,1765055462014,-562.86,9.041e-05,2]
[396573211,1765055462024,-502.66652176,9.041e-05,2]
[396573213,1765055462034,-500.0,9.041e-05,2]
[396573215,1765055462043,-500.0,9.041e-05,2]
[396573217,1765055462053,-500.0,9.041e-05,2]
[396573219,1765055462062,-500.0,9.041e-05,2]
[396573221,1765055462071,-500.0,9.041e-05,2]
[396573223,1765055462082,-1004.45733094,9.041e-05,2]
[396573225,1765055462092,-2198.97,9.041e-05,2]
[396573227,1765055462101,-500.0,9.041e-05,2]
[396573229,1765055462111,-500.0,9.041e-05,2]
[396573231,1765055462120,-500.0,9.041e-05,2]